Cogmind - Beta 17 @@@ ROGUE MODE // 2026.07.29 @ 19:30:31 Player: Artackni Result: Destroyed by Decapitator with Experimental Terror Saw Performance ------------- Evolutions (8) 4000 Regions Visited (16) 3200 Robots Destroyed (308) 1540 Value Destroyed (12753) 12753 Prototype IDs (95) 1900 Alien Tech Used (2) 400 Bonus (3421) 3421 TOTAL SCORE: 27214 Bonus ------- High Alert Combat Kills 2221 Entered Garrisons 200 Entered DSFs 500 Hacked Protovariant 500 Cogmind --------- Core Integrity 0/1450 Matter 285/300 Energy 84/100 System Corruption 33% Temperature Cool (0) Movement Core (50) Location -2/Protoforge Parts ------- > --- POWER (2) -------- (None) > --- PROPULSION (7) --- (None) > --- UTILITY (10) ----- Concept Phasing Heat Sink Concept Phasing Heat Sink > --- WEAPON (4) ------- (None) > --- INVENTORY (5) ---- Advanced Cooling System Concept Antigrav Storage Unit Advanced Target Analyzer Concept Matter Streamer Peak State ------------ > --- POWER ------------ Light Quantum Reactor Light Quantum Reactor > --- PROPULSION ------- Improved Gyrokinetic Inverter Improved Gyrokinetic Inverter Cooled Antigrav System Combat Antigrav System Combat Linear Gravjet Combat Linear Gravjet Combat Linear Gravjet > --- UTILITY ---------- Advanced Cooling System Experimental Coolant Injector Experimental Coolant Injector Large Storage Unit Experimental Energy Well Advanced Sensor Array Advanced Transmission Jammer Centrium Medium Armor Plating Thermal Barrier System Mapper > --- WEAPON ----------- Compact HERF Cannon Enhanced Nova Cannon Sigix Broadsword > --- INVENTORY -------- Micro Antimatter Reactor Light Quantum Reactor Combat Linear Gravjet Advanced Cooling System Experimental Coolant Injector Quantum Capacitor Dimensional Node Initializer Transdimensional Reconstructor High-powered Transdimensional Reconstructor Subatomic Replicator Enhanced Nova Cannon Gamma Bomb Array Advanced Micro-nuke Launcher [Rating: 208] Favorites ----------- Power Light Quantum Reactor Engine Light Ion Engine Power Core Micro Fission Core Reactor Light Quantum Reactor Propulsion Improved Titanium Leg Treads Light Treads Leg Improved Titanium Leg Wheel Wheel Hover Unit Combat Linear Gravjet Flight Unit Xenon Bombardment Thruster Utility Advanced Heat Sink Device Advanced Heat Sink Storage High-capacity Storage Unit Processor Advanced Signal Interpreter Hackware System Mapper Protection Centrium Medium Armor Plating Weapon Cooled Pulse Rifle Energy Gun Cooled Pulse Rifle Energy Cannon Heavy Ion Cannon Ballistic Gun Railgun Ballistic Cannon Mini Assault Cannon Launcher Gamma Bomb Array Special Weapon Improved Plasma Cutter Slashing Weapon Sigix Broadsword Build | -11 -10 -10 -8 -7 -7 -7 -5 -4 -4 -3 -3 -3 -3 -2 -2 -2 ------- Run | Yrd Mat Sub Mat Fac Sto Rec Fac Fac DSF Res Gar Res Tes Res Qua Frg Slots Evolved 16 | . . . 4 2 . . 4 2 . 2 . . . 2 . . Power 1 | . . . . . . . 1 . . . . . . . . . Propulsion 5 | . . . 2 1 . . 1 . . 1 . . . . . . Utility 8 | . . . 1 1 . . 2 2 . . . . . 2 . . Weapon 2 | . . . 1 . . . . . . 1 . . . . . . Parts Attached 262 | 7 8 . 34 55 8 5 20 . 1 28 3 33 10 9 27 14 Power 23 | 1 1 . 3 5 . . . . . 3 1 3 . 2 2 2 Engine 14 | 1 1 . 3 5 . . . . . 2 1 1 . . . . Core 1 | . . . . . . . . . . 1 . . . . . . Reactor 8 | . . . . . . . . . . . . 2 . 2 2 2 Propulsion 87 | 2 4 . 13 22 3 1 6 . 1 13 2 9 5 1 . 5 Treads 20 | 2 . . 13 4 . . . . . 1 . . . . . . Leg 21 | . 3 . . 16 1 1 . . . . . . . . . . Wheel 13 | . 1 . . 2 . . 5 . . 5 . . . . . . Hover 20 | . . . . . 1 . . . . . . 9 5 1 . 4 Flight 13 | . . . . . 1 . 1 . 1 7 2 . . . . 1 Utility 88 | 2 1 . 7 13 1 3 7 . . 11 . 12 4 4 17 6 Device 49 | 1 . . 3 7 1 2 5 . . 5 . 7 1 3 9 5 Storage 11 | 1 1 . 1 1 . . . . . 1 . 2 2 . 2 . Processor 10 | . . . . . . . 1 . . 5 . 1 . . 2 1 Hackware 5 | . . . . 2 . . . . . . . 1 1 . 1 . Protection 13 | . . . 3 3 . 1 1 . . . . 1 . 1 3 . Artifact . | . . . . . . . . . . . . . . . . . Weapon 64 | 2 2 . 11 15 4 1 7 . . 1 . 9 1 2 8 1 Energy Gun 23 | 1 . . 8 9 1 . 1 . . . . 2 1 . . . Energy Cannon 11 | . 1 . 1 5 . . . . . 1 . . . 1 2 . Ballistic Gun 17 | 1 1 . 2 . 2 . 3 . . . . 7 . . 1 . Ballistic Cannon 2 | . . . . . 1 1 . . . . . . . . . . Launcher 8 | . . . . 1 . . 2 . . . . . . 1 3 1 Special Weapon 1 | . . . . . . . . . . . . . . . 1 . Impact Weapon . | . . . . . . . . . . . . . . . . . Slashing Weapon 2 | . . . . . . . 1 . . . . . . . 1 . Piercing Weapon . | . . . . . . . . . . . . . . . . . Special Melee Weapon . | . . . . . . . . . . . . . . . . . Unidentified Prototypes 40 | . . . 6 7 5 1 . . . 1 . 1 7 . 7 5 Corrupted Parts 2 | . . . . . . . . . . . . . . . 2 . System Corruption 15 | . . . . . . . . . . . . . . . 15 . Parts Lost 110 | . 2 . 6 12 8 1 27 . 3 5 12 4 1 1 3 25 Power 13 | . 1 . . 1 . . 2 . . 1 2 1 . . . 5 Propulsion 41 | . 1 . 3 4 3 1 12 . . 2 4 2 . . . 9 Utility 34 | . . . 2 3 3 . 5 . 2 2 5 1 . 1 3 7 Weapon 22 | . . . 1 4 2 . 8 . 1 . 1 . 1 . . 4 Highest Loss Streak 14 | . 1 . 1 4 6 1 14 . 3 5 12 3 1 1 1 11 To Critical Strikes 4 | . . . 1 . . . 1 . . . . . . . . 2 Average Backups 15 | . 12 14 17 19 19 18 9 5 4 4 4 5 9 13 14 12 Power 1 | . . . . . 1 2 . 1 1 . . . . 1 1 . Propulsion 1 | . . 1 1 2 2 1 . . . . . . 2 2 1 1 Utility 5 | . 5 6 7 7 5 4 4 2 2 2 2 3 4 4 3 4 Weapon 6 | . 6 7 7 8 8 9 2 1 . . . . 2 4 5 2 Tool/Special . | . . . . . . . . . . . . . . . . . Unused Backups 60 | . . . 14 16 2 5 4 . . . . 2 3 . 5 9 Power 2 | . . . 1 . . . 1 . . . . . . . . . Propulsion 6 | . . . . 1 . 1 . . . . . 1 1 . . 2 Utility 19 | . . . 4 4 1 . 1 . . . . 1 1 . 3 4 Weapon 26 | . . . 9 11 1 4 . . . . . . 1 . . . Tool/Special 7 | . . . . . . . 2 . . . . . . . 2 3 Average Slot Usage (%) 84 | . 99 100 97 95 89 73 51 10 6 36 64 84 95 92 94 64 Engine 5 | . 13 14 9 7 7 6 3 . . 2 4 5 . . . . Reactor 1 | . . . . . . . . . . . . 2 9 8 7 5 Treads 8 | . 8 . 31 17 . . . . . 1 . . . . . . Leg 10 | . 17 14 1 17 37 19 2 . . . . . . . . . Wheel 2 | . 1 14 1 2 . 3 5 . . 11 . . . . . . Hover 7 | . . . . . . . . . . . . 16 33 30 30 21 Device 13 | . 14 14 8 10 7 13 14 5 2 6 11 12 17 18 18 16 Storage 7 | . 14 14 9 7 7 7 3 . . . . 1 4 4 6 7 Processor 2 | . . . . . . . 3 5 2 1 19 11 4 4 6 . Hackware 1 | . . . . . . . . . . . . 2 . 4 4 3 Protection 3 | . . . 8 6 5 1 . . . . . 1 4 4 3 2 Energy Gun 7 | . . . 18 14 16 4 4 . . . . 3 . . . . Energy Cannon 4 | . 13 14 1 7 2 7 . . . 3 2 . . 2 2 3 Ballistic Gun 4 | . 14 14 6 . 2 5 3 . . . . 13 18 14 2 . Peak Build Rating 208 | 7 8 8 36 60 62 66 71 23 23 85 85 129 139 159 207 208 Average Rating 73 | 5 7 8 25 51 57 55 54 23 9 30 65 105 130 153 187 146 On Entrance 60 | . 7 8 8 36 59 49 54 23 23 7 85 48 127 139 153 202 Avg Prop Armor Cover (%) 7 | . 8 8 6 11 . 9 14 . . 11 3 5 1 1 . 10 Naked Turns 18 | . . . . . . . . . 14 4 . . . . . . Heaviest Build 102 | 13 29 29 67 90 89 86 74 1 1 31 31 79 69 94 94 102 Greatest Support 108 | 40 40 10 86 108 100 90 63 3 4 50 39 84 81 95 95 101 Greatest Overweight (x) 9 | . 2 2 3 8 . 9 2 . . 3 . 2 1 . . 3 Average Overweight (x) . | . . 2 . . . 1 . . . . . . . . . . Largest Inventory Capacity 25 | 8 15 15 20 25 20 20 20 5 5 5 5 15 10 15 15 15 Average Capacity 16 | 7 14 15 17 20 20 20 15 5 5 5 5 6 10 14 15 13 Most Carried 20 | 2 15 15 20 20 20 20 14 5 5 5 5 10 10 15 15 15 Average Carried 15 | . 12 14 17 19 19 18 9 5 4 4 4 5 9 14 14 12 Final Capacity 20 | 8 15 15 20 20 20 20 5 5 5 5 5 10 10 15 15 5 Final Carried 20 | 2 15 15 20 18 20 13 5 5 5 5 3 10 10 15 15 4 Scrap Engine Consumption 62 | . . . . . . 48 9 . 5 . . . . . . . Constructs Created 5 | . . . . . . 3 2 . . . . . . . . . Constructs Modified 20 | . . . . . . 17 3 . . . . . . . . . Class Distribution -------------------- 22% | Scavenger-Tank 13% | Tank 12% | Hacker-Mutant 11% | Scavenger-Mutant 9% | Construct 8% | Mutant 5% | Gunner 4% | Scavenger-Scout 4% | Scavenger-Gunner Dominant Class ---------------- Scavenger-Mutant | -10/Materials Scavenger-Mutant | -10/Subcaves Scavenger-Tank | -8/Materials Scavenger-Tank | -7/Factory Tank | -7/Storage Construct | -7/Recycling Mutant | -5/Factory Mutant | -4/Factory Mutant | -4/DSF Scavenger-Mutant | -3/Research Scavenger-Sprinter | -3/Garrison Scavenger-Scout | -3/Research Scavenger-Scout | -3/Testing Scavenger-Scout | -2/Research Hacker-Mutant | -2/Quarantine Hacker-Mutant | -2/Protoforge Resources | -11 -10 -10 -8 -7 -7 -7 -5 -4 -4 -3 -3 -3 -3 -2 -2 -2 ----------- Run | Yrd Mat Sub Mat Fac Sto Rec Fac Fac DSF Res Gar Res Tes Res Qua Frg Matter Collected 7428 | 284 215 . 608 1083 372 509 452 . 24 397 30 902 295 319 1388 550 Remotely . | . . . . . . . . . . . . . . . . . Salvage Created 14034 | 37 655 . 1703 2999 1332 554 1766 . . 566 . 897 285 423 1155 1662 Parts 703 | 6 32 . 84 150 57 21 82 . . 34 . 55 6 23 71 82 Haulers Intercepted 11 | . 2 . 5 2 2 . . . . . . . . . . . Recyclers Shooed 17 | . . . . 4 3 1 4 . . . . 1 2 2 . . Parts Field Recycled . | . . . . . . . . . . . . . . . . . Retrieved Matter . | . . . . . . . . . . . . . . . . . Parts Self-Destructed 3 | . . 3 . . . . . . . . . . . . . . Prevented . | . . . . . . . . . . . . . . . . . Parts Restored . | . . . . . . . . . . . . . . . . . Kills | -11 -10 -10 -8 -7 -7 -7 -5 -4 -4 -3 -3 -3 -3 -2 -2 -2 ------- Run | Yrd Mat Sub Mat Fac Sto Rec Fac Fac DSF Res Gar Res Tes Res Qua Frg Combat Hostiles Destroyed 201 | . 11 . 29 55 30 6 24 . . 4 . 6 . 5 10 21 Melee 1 | . . . . . . . 1 . . . . . . . . . Guns 101 | . 4 . 27 26 24 1 12 . . . . 6 . 1 . . Cannons 44 | . 7 . . 16 4 5 2 . . 4 . . . . . 6 AOE 33 | . . . 1 10 2 . 9 . . . . . . 4 1 6 Classes Destroyed 19 | 1 3 . 8 3 2 1 . . . . . . . . . 1 Worker 32 | . 1 . 1 9 1 . 7 . . 5 . 4 1 3 . . Builder 17 | . . . 1 3 1 4 . . . 2 . 2 . 1 . 3 Tunneler 10 | 2 1 . . 2 . . 1 . . . . 3 . 1 . . Hauler 11 | . 2 . 5 2 2 . . . . . . . . . . . Recycler 26 | . . . 4 3 . 2 7 . . 2 . 2 2 2 2 . Mechanic 3 | . . . . . 2 . . . . . . 1 . . . . Operator 3 | . . . . 1 1 . . . . . . . . . 1 . Watcher 5 | . . . 2 1 . . . . . . . . . . . 2 Swarmer 35 | . . . 3 9 6 . 9 . . 4 . . . 4 . . Grunt 76 | . 11 . 14 31 16 . 4 . . . . . . . . . Brawler 2 | . . . 1 1 . . . . . . . . . . . . Duelist 2 | . . . . . 1 . 1 . . . . . . . . . Sentry 23 | . . . 8 2 5 2 . . . . . 1 . 1 . 4 Specialist 2 | . . . . 2 . . . . . . . . . . . . Hunter 18 | . . . 2 . 1 . 5 . . . . . . . 2 8 Programmer 25 | . . . . 10 1 . 5 . . . . 5 . . . 4 Heavy 1 | . . . 1 . . . . . . . . . . . . . Quarantine Guard 8 | . . . . . . . . . . . . . . . 8 . Decapitator 5 | . . . . . . . . . . . . . . . . 5 Subdweller 4 | . . . . . . 4 . . . . . . . . . . Best Kill Streak 8 | 1 4 . 5 8 8 3 7 . . 6 . 7 3 8 2 7 Combat Bots Only 7 | . 4 . 3 5 6 2 7 . . 4 . 2 . 4 2 5 Max Kills in Single Turn 5 | 1 1 . 2 4 4 1 3 . . 1 . 2 1 5 2 2 Gunslinging 1 | . . . . . 1 . . . . . . . . . . . Exploded 3 | . . . 1 2 2 . 3 . . . . . . 3 1 2 Melee 1 | . . . . . . . 1 . . . . . . . . . Uniques/NPCs Destroyed . | . . . . . . . . . . . . . . . . . Combat | -11 -10 -10 -8 -7 -7 -7 -5 -4 -4 -3 -3 -3 -3 -2 -2 -2 -------- Run | Yrd Mat Sub Mat Fac Sto Rec Fac Fac DSF Res Gar Res Tes Res Qua Frg Hostile Shots Fired 1883 | . 63 . 121 319 273 57 300 . 62 32 63 45 2 69 67 410 Missed 661 | . 13 . 32 93 90 29 82 . 14 6 32 9 1 38 36 186 Hits 1222 | . 50 . 89 226 183 28 218 . 48 26 31 36 1 31 31 224 Melee 34 | . . . 1 1 . . 4 . 3 . 3 . . . . 22 Projectile 1188 | . 50 . 88 225 183 28 214 . 45 26 28 36 1 31 31 202 AOE 8 | . . . . . 1 . 3 . 2 . 1 . . . . 1 Critical Strikes 59 | . 1 . 3 10 2 . 6 . 2 1 2 3 . . . 29 Part Disruptions 1 | . . . . . . . . . . . . 1 . . . . Damage Taken 22334 | . 632 . 1511 3545 2086 266 4172 . 742 594 639 865 31 739 1226 5286 Core 3924 | . 60 . 61 267 235 50 960 . 624 78 60 90 . 78 46 1315 Absorbed by Shields 131 | . . . . . . 92 . . . . 16 . . . . 23 Ignored by Resistances 54 | . . . 24 8 . . . . . . . . . . 22 . Regen/Repaired (Parts) 912 | . . . . . . 5 43 . . . . . . . 523 341 Core Remaining (%) 59 | 100 . 76 88 . . 21 4 . 45 . . . 82 . . . Volleys Fired 733 | 14 50 . 82 143 70 41 106 . . 34 . 45 16 14 45 73 Largest 4 | 2 2 . 3 3 3 3 3 . . 1 . 4 4 4 4 1 Hottest 280 | 60 80 . 193 169 210 133 181 . . 113 . 199 140 140 280 120 Shots Fired 1672 | 28 100 . 244 402 193 117 212 . . 34 . 122 39 38 73 70 Gun 1154 | 28 50 . 244 224 168 57 181 . . . . 122 39 32 9 . Cannon 440 | . 50 . . 169 25 60 13 . . 34 . . . 4 29 56 Launcher 78 | . . . . 9 . . 18 . . . . . . 2 35 14 Special . | . . . . . . . . . . . . . . . . . Kinetic 456 | 14 50 . 45 5 27 45 104 . . . . 86 39 32 9 . Thermal 1100 | 14 50 . 199 388 166 72 90 . . 34 . 36 . 4 28 19 Explosive 35 | . . . . 9 . . 18 . . . . . . 2 . 6 Electromagnetic 81 | . . . . . . . . . . . . . . . 36 45 Robot Hit Streak 33 | 10 10 . 16 22 15 13 30 . . 3 . 12 5 14 27 33 Robot Miss Streak 11 | 2 3 . 8 5 7 3 5 . . 3 . 3 2 3 7 11 Penetration Max 1 | . . . . . . . . . . . . 1 1 . 1 . Secondary Targets 4 | . . . . . 3 . 1 . . . . . . . . . Max Gunslinging Chain 1 | . . . . . 1 . 1 . . . . . . . . . Capacitor 20 | . . . . . . . . . . . . . . . . 20 Shots Hit Robots 1079 | 19 63 . 181 267 142 58 173 . 5 16 . 63 19 19 15 39 Core Hits 722 | 4 24 . 161 126 138 18 81 . 1 13 . 29 5 20 52 50 Critical Kills 4 | . . . 1 1 . . . . . . . 1 . . . 1 Critical Parts Destroyed 8 | . . . . . . . . . . . . 3 5 . . . Critical Strikes 31 | . . . 6 10 2 . 2 . 1 . . 4 5 . . 1 Burn 16 | . . . 5 9 2 . . . . . . . . . . . Meltdown 2 | . . . . 1 . . . . . . . . . . . 1 Destroy 10 | . . . 1 . . . . . . . . 4 5 . . . Blast 1 | . . . . . . . 1 . . . . . . . . . Sever 2 | . . . . . . . 1 . 1 . . . . . . . Melee Attacks 39 | . . . . . . . 20 . 8 . . . . . 9 2 Impact . | . . . . . . . . . . . . . . . . . Slashing 39 | . . . . . . . 20 . 8 . . . . . 9 2 Piercing . | . . . . . . . . . . . . . . . . . Sneak Attacks 9 | . . . . . . . 9 . . . . . . . . . Combat Hostiles . | . . . . . . . . . . . . . . . . . Follow-up Attacks . | . . . . . . . . . . . . . . . . . Damage Inflicted 31737 | 182 975 . 2850 7734 3548 1318 5300 . 168 730 . 1929 531 1377 1709 3386 Guns 16008 | 182 358 . 2737 3536 2882 550 2707 . . . . 1929 531 491 105 . Cannons 7200 | . 613 . . 2809 295 768 286 . . 710 . . . . 133 1586 Explosions 7267 | . . . 112 1330 346 . 1451 . . . . . . 849 1379 1800 Melee 1015 | . . . . . . . 847 . 168 . . . . . . . Ramming 247 | . 4 . 1 59 25 . 9 . . 20 . . . 37 92 . Kinetic 5855 | 91 358 . 387 51 449 569 1514 . . . . 1309 531 491 105 . Thermal 16541 | 91 613 . 2350 6294 2728 749 1479 . . 710 . 620 . . 133 774 Explosive 5033 | . . . 112 1330 346 . 1451 . . . . . . 849 . 945 Electromagnetic 3046 | . . . . . . . . . . . . . . . 1379 1667 Impact . | . . . . . . . . . . . . . . . . . Slashing 1015 | . . . . . . . 847 . 168 . . . . . . . Piercing . | . . . . . . . . . . . . . . . . . Highest Corruption 33 | . 3 3 9 8 10 11 6 . 2 2 2 8 8 1 16 33 Average Corruption 7 | . 2 3 6 4 8 10 1 . 2 2 2 3 8 1 11 23 Corruption Purged . | . . . . . . . . . . . . . . . . . Corruption Blocked 15 | . . . . . . . . . . . . . . . 15 . Effects 434 | . 6 3 35 82 25 101 12 . 1 3 3 18 10 . 81 54 Message Errors 82 | . 1 . 6 16 6 23 4 . . . 1 1 1 . 17 6 Matter Fused 92 | . 1 . 7 13 3 27 1 . 1 1 . 6 2 . 21 9 Heat Flow Errors 52 | . . 1 4 9 6 8 1 . . 2 . 2 1 . 11 7 Energy Discharges 69 | . 2 1 4 16 1 15 1 . . . 1 4 2 . 16 6 Parts Rejected 5 | . . . 1 . 1 . 2 . . . . . . . . 1 Parts Fused 4 | . 1 . . 2 . 1 . . . . . . . . . . Data Loss (minor) 53 | . . 1 4 13 1 14 2 . . . 1 . 2 . 10 5 Data Loss (major) 15 | . . . 3 2 1 3 . . . . . 1 . . 2 3 Misfires 24 | . . . 3 7 2 9 . . . . . 2 . . 1 . Alerts 8 | . 1 . 1 1 . . 1 . . . . 1 1 . 1 1 Misdirections 14 | . . . . . . . . . . . . . . . 1 13 Weapon Failures 16 | . . . 2 3 4 1 . . . . . 1 1 . 1 3 Overload Shots 2 | . . . . . 2 . . . . . . . . . . . Overflow Damage 701 | . 15 . 67 120 37 33 165 . . 40 . . . 113 42 69 Projectiles 243 | . 15 . . 96 . 33 . . . 40 . . . . 10 49 Explosions 288 | . . . 67 24 37 . 35 . . . . . . 105 . 20 Melee 170 | . . . . . . . 130 . . . . . . 8 32 . Knockbacks 5 | . . . . 1 1 2 . . . . . . . 1 . . Impact 3 | . . . . 1 1 . . . . . . . . 1 . . Kinetic 2 | . . . . . . 2 . . . . . . . . . . Secondary . | . . . . . . . . . . . . . . . . . Self-Inflicted Damage 614 | . . . 109 . 56 . 51 . . 9 . . . 18 58 313 Shots 19 | . . . 1 . 1 . 3 . . . . . . . 1 13 Rammed 12 | . 4 . 1 . . . . . . 4 . . . 2 1 . Targets Rammed 19 | . 4 . 1 3 3 . 1 . . 4 . . . 2 1 . Kicked 7 | . . . . 3 3 . 1 . . . . . . . . . Crushed . | . . . . . . . . . . . . . . . . . Highest Temperature 556 | 60 291 203 426 169 421 252 128 . . 302 28 556 179 60 279 192 Average Temperature 84 | 27 74 103 118 28 96 76 22 . . 70 14 105 32 11 93 67 Received Heat Transfer 3274 | . 366 . 540 1056 615 64 162 . 258 . 114 27 . 9 9 54 Effects 16 | . 4 . 3 . 2 . . . . . . 6 . . 1 . Shutdowns 3 | . . . . . . . . . . . . 3 . . . . Energy Bleed 3 | . 1 . 2 . . . . . . . . . . . . . Interference 5 | . 3 . . . 1 . . . . . . . . . 1 . Matter Decay 1 | . . . . . 1 . . . . . . . . . . . Damage (minor) 4 | . . . 1 . . . . . . . . 3 . . . . Siege Activations . | . . . . . . . . . . . . . . . . . Martial Activations . | . . . . . . . . . . . . . . . . . Shielding Activations . | . . . . . . . . . . . . . . . . . Robots Disrupted 2 | . . . . . . . . . . . . . . . 1 1 Combat Hostiles 2 | . . . . . . . . . . . . . . . 1 1 Robots Corrupted 17 | . . . . . . . . . . . . . . . 9 8 Combat Hostiles 17 | . . . . . . . . . . . . . . . 9 8 Parts Fried 52 | . . . . . . . . . . . . . . . 38 14 Impact Corruptions 2 | . . . . . . . . . . . . . . 1 1 . Robots Melted 5 | . . . 1 3 . . . . . . . . . . . 1 Combat Hostiles 5 | . . . 1 3 . . . . . . . . . . . 1 Parts Melted 61 | . 2 . 9 34 2 3 3 . . 1 . 1 . . 1 5 Heat Transferred 25078 | 225 1295 . 4234 10484 3166 1147 2405 . . 666 . 777 . . 111 568 Parts Sabotaged . | . . . . . . . . . . . . . . . . . Parts Stolen . | . . . . . . . . . . . . . . . . . Parts Stripped . | . . . . . . . . . . . . . . . . . Power Chain Reactions 2 | . . . . . . . . . . . . . . . . 2 Alert | -11 -10 -10 -8 -7 -7 -7 -5 -4 -4 -3 -3 -3 -3 -2 -2 -2 ------- Run | Yrd Mat Sub Mat Fac Sto Rec Fac Fac DSF Res Gar Res Tes Res Qua Frg Maximum Alert Level 5 | . . . 2 5 4 2 1 . . . . . . 1 1 2 Low Security (%) 55 | 100 100 . 33 38 . 61 71 100 100 100 100 100 100 86 43 35 Level 1 20 | . . . 36 6 . 19 28 . . . . . . 13 56 . Level 2 12 | . . . 29 10 7 19 . . . . . . . . . 63 Level 3 4 | . . . . 14 55 . . . . . . . . . . . Level 4 5 | . . . . 18 37 . . . . . . . . . . . Level 5 2 | . . . . 11 . . . . . . . . . . . . High Security . | . . . . . . . . . . . . . . . . . Max Security . | . . . . . . . . . . . . . . . . . Peak Influence 1680 | 5 71 . 449 1680 1531 614 371 179 128 71 148 87 20 259 326 561 Initial 692 | . . . . 189 692 587 154 179 128 63 53 72 18 2 156 143 Average 305 | . 13 . 247 662 1059 205 171 179 118 26 89 27 6 42 223 371 Influence Increases 9100 | 10 354 . 962 2284 1205 138 1139 5 15 238 195 316 79 382 821 957 Destroy 0b10 Robot/C 3940 | . 220 . 580 1100 600 40 480 . . 80 . 120 . 100 200 420 Destroy 0b10 Robot/NC 540 | 10 20 . 65 105 35 35 75 . . 45 . 60 15 35 15 25 Destroy Leader 912 | . 54 . 184 246 144 . 70 . . 10 . 30 . 10 90 74 Successful Hack 173 | . 24 . 20 58 8 17 . 5 . . . . 4 15 9 13 Disable Machine 705 | . 15 . 45 150 90 15 45 . . 30 . 60 60 . 135 60 Anti-Garrison Action 800 | . . . . 400 200 . . . . . . . . . . 200 Destroy Structure 575 | . 6 . 23 75 23 31 154 . . 28 . 16 . 117 72 30 Advance Influence 150 | . . . . . . . 150 . . . . . . . . . Partial Spotted 285 | . 15 . . 15 . . 15 . . 45 15 . . . 135 45 Lose Combat Pursuer 1020 | . . . 45 135 105 . 150 . 15 . 180 30 . 105 165 90 Influence Decreases 8606 | 10 339 15 545 1178 1221 1632 785 188 86 280 138 411 107 108 845 718 Entered New Map 2617 | . . 8 . 228 831 920 9 188 56 50 18 56 15 3 123 112 Time Decay 4757 | 10 319 7 485 686 310 702 506 . . 186 . 319 84 95 692 356 Lost Part 1082 | . 20 . 60 114 80 10 270 . 30 44 120 36 8 10 30 250 Purge Threat 150 | . . . . 150 . . . . . . . . . . . . Squads Dispatched 64 | . 3 . 5 21 8 . 6 1 1 2 . 2 3 3 4 5 Investigation 14 | . 1 . 2 3 1 . . 1 . . . . 1 . 3 2 Extermination 19 | . . . . 8 1 . 2 . . 1 . 2 1 1 1 2 Reinforcement 21 | . 2 . 1 5 4 . 4 . 1 1 . . . 2 . 1 Assault 7 | . . . 1 5 . . . . . . . . 1 . . . Garrison 3 | . . . 1 . 2 . . . . . . . . . . . Intercept . | . . . . . . . . . . . . . . . . . Searches Triggered . | . . . . . . . . . . . . . . . . . Construction Impeded 3 | . . . . 1 . . 1 . . . . . . . . 1 Haulers Reinforced 4 | . . . . 1 1 . 2 . . . . . . . . . Active Scanning Responses . | . . . . . . . . . . . . . . . . . Cargo Convoy Interrupts . | . . . . . . . . . . . . . . . . . Stealth | -11 -10 -10 -8 -7 -7 -7 -5 -4 -4 -3 -3 -3 -3 -2 -2 -2 --------- Run | Yrd Mat Sub Mat Fac Sto Rec Fac Fac DSF Res Gar Res Tes Res Qua Frg Distress Signals 21 | . 2 . 4 5 3 1 2 . . 1 . . 2 1 . . Communications Jammed 8 | . . . . . . . . . . . . . . . . 8 Distress Signals 8 | . . . . . . . . . . . . . . . . 8 Times Spotted 369 | . 21 . 47 79 41 6 40 . 6 9 21 10 4 25 19 41 Peak Tracking Total 18 | . 6 . 7 6 12 2 6 . 3 6 17 4 4 18 5 8 Tactical Retreats 39 | . . . 3 8 4 . 7 . 1 . 3 2 . 2 7 2 Traps | -11 -10 -10 -8 -7 -7 -7 -5 -4 -4 -3 -3 -3 -3 -2 -2 -2 ------- Run | Yrd Mat Sub Mat Fac Sto Rec Fac Fac DSF Res Gar Res Tes Res Qua Frg Traps Triggered 33 | . 3 . 2 9 1 . 2 . . 2 1 1 . 2 5 5 Indirectly 5 | . . . . . . . . . . . . . . . 3 2 Trap Hack Attempts . | . . . . . . . . . . . . . . . . . Triggered . | . . . . . . . . . . . . . . . . . Disarmed . | . . . . . . . . . . . . . . . . . Reprogrammed . | . . . . . . . . . . . . . . . . . Reused . | . . . . . . . . . . . . . . . . . Traps Extracted . | . . . . . . . . . . . . . . . . . Installed . | . . . . . . . . . . . . . . . . . Triggered . | . . . . . . . . . . . . . . . . . Machines | -11 -10 -10 -8 -7 -7 -7 -5 -4 -4 -3 -3 -3 -3 -2 -2 -2 ---------- Run | Yrd Mat Sub Mat Fac Sto Rec Fac Fac DSF Res Gar Res Tes Res Qua Frg Machines Disabled 49 | . 1 . 3 10 6 1 3 . . 2 . 4 5 . 9 5 Max in Single Turn 6 | . 1 . 2 6 2 1 1 . . 1 . 1 1 . 2 2 Garrison Access 6 | . . . 1 2 1 . . . . . . . . . 1 1 Machines Repaired . | . . . . . . . . . . . . . . . . . Machines Dismantled . | . . . . . . . . . . . . . . . . . Machines Sabotaged . | . . . . . . . . . . . . . . . . . Overloaded Fab Kills . | . . . . . . . . . . . . . . . . . Hacking | -11 -10 -10 -8 -7 -7 -7 -5 -4 -4 -3 -3 -3 -3 -2 -2 -2 --------- Run | Yrd Mat Sub Mat Fac Sto Rec Fac Fac DSF Res Gar Res Tes Res Qua Frg Machines Accessed 56 | . 5 . 9 13 2 9 2 1 . 3 . . 2 2 3 5 Terminals 40 | . 5 . 8 10 1 3 1 1 . 2 . . 2 2 1 4 Fabricators . | . . . . . . . . . . . . . . . . . Repair Stations 1 | . . . . . . . . . . . . . . . 1 . Recycling Units 5 | . . . . . . 5 . . . . . . . . . . Scanalyzers 1 | . . . . 1 . . . . . . . . . . . . Garrison Access 8 | . . . 1 2 1 . 1 . . 1 . . . . 1 1 Total Hacks 140 | . 15 . 26 31 3 24 4 3 . 4 . . 4 3 13 10 Successful 70 | . 7 . 12 11 2 12 1 1 . 1 . . 1 2 10 10 Failed 69 | . 8 . 14 19 1 12 3 2 . 3 . . 3 1 3 . Catastrophic 10 | . . . 1 5 . 1 1 . . 1 . . 1 . . . Database Lockouts 1 | . . . . 1 . . . . . . . . . . . . Manual 97 | . 14 . 24 25 4 15 3 . . 3 . . . 3 3 3 Terminals 97 | . 15 . 24 24 2 5 3 3 . 3 . . 4 3 2 9 Fabricators . | . . . . . . . . . . . . . . . . . Repair Stations 10 | . . . . . . . . . . . . . . . 10 . Recycling Units 17 | . . . . . . 17 . . . . . . . . . . Scanalyzers 3 | . . . . 3 . . . . . . . . . . . . Garrison Access 11 | . . . 2 4 1 . 1 . . 1 . . . . 1 1 Terminal Hacks 19 | . 1 . . 3 1 2 . 1 . . . . 1 1 . 9 Record 6 | . . . . 1 . . . . . . . . . . . 5 Robot Analysis 1 | . 1 . . . . . . . . . . . . . . . Open DSF 1 | . . . . . . . . 1 . . . . . . . . Branch Access Points 3 | . . . . 1 1 . . . . . . . . 1 . . Unreport Threat 1 | . . . . 1 . . . . . . . . . . . . Maintenance Status 1 | . . . . . . . . . . . . . . . . 1 Zone Layout 2 | . . . . . . . . . . . . . . . . 2 Proto ID Catalog 1 | . . . . . . . . . . . . . . . . 1 Protovariant Controls 1 | . . . . . . . . . . . . . 1 . . . Release Object 2 | . . . . . . 2 . . . . . . . . . . Fabricator Hacks . | . . . . . . . . . . . . . . . . . Repair Station Hacks 8 | . . . . . . . . . . . . . . . 8 . Scan Component 4 | . . . . . . . . . . . . . . . 4 . Repair 4 | . . . . . . . . . . . . . . . 4 . Recycling Unit Hacks 3 | . . . . . . 3 . . . . . . . . . . Retrieve Components 3 | . . . . . . 3 . . . . . . . . . . Scanalyzer 1 | . . . . 1 . . . . . . . . . . . . Retrieve Study 1 | . . . . 1 . . . . . . . . . . . . Garrison Access Hacks 3 | . . . 1 . . . . . . 1 . . . . 1 . Unlock Access 1 | . . . . . . . . . . 1 . . . . . . Seal Access 2 | . . . 1 . . . . . . . . . . . 1 . Unauthorized Hacks 36 | . 6 . 11 7 1 7 1 . . . . . . 1 1 1 Terminals 25 | . 6 . 11 5 . 1 1 . . . . . . 1 . . Botnet 13 | . . . 5 5 . 1 1 . . . . . . 1 . . Operators 1 | . 1 . . . . . . . . . . . . . . . Skim 11 | . 5 . 6 . . . . . . . . . . . . . Fabricators . | . . . . . . . . . . . . . . . . . Repair Stations 1 | . . . . . . . . . . . . . . . 1 . Patch 1 | . . . . . . . . . . . . . . . 1 . Recycling Units 6 | . . . . . . 6 . . . . . . . . . . Reject 3 | . . . . . . 3 . . . . . . . . . . Mask 3 | . . . . . . 3 . . . . . . . . . . Scanalyzers . | . . . . . . . . . . . . . . . . . Garrison Access 4 | . . . . 2 1 . . . . . . . . . . 1 Jam 4 | . . . . 2 1 . . . . . . . . . . 1 Data Cores Recovered 1 | . . . . 1 . . . . . . . . . . . . Used . | . . . . . . . . . . . . . . . . . Hacking Detections 37 | . 3 . 4 12 . 7 2 1 . 2 . . 2 1 2 1 Full Trace Events 9 | . . . 2 1 . 3 . 1 . . . . 1 . . 1 Feedback Events 2 | . . . 1 . . 1 . . . . . . . . . . Corruption 2 | . . . 1 . . 1 . . . . . . . . . . Feedback Blocked . | . . . . . . . . . . . . . . . . . Robot Schematics Acquired 2 | . . . . . . . . . . . . . . . 1 1 Robots Built . | . . . . . . . . . . . . . . . . . Authchips . | . . . . . . . . . . . . . . . . . Time . | . . . . . . . . . . . . . . . . . Total Robot Build Rating . | . . . . . . . . . . . . . . . . . Part Schematics Acquired 12 | . . . . . . . . . . . . . . . 10 2 Parts Built . | . . . . . . . . . . . . . . . . . Authchips . | . . . . . . . . . . . . . . . . . Time . | . . . . . . . . . . . . . . . . . Total Part Build Rating . | . . . . . . . . . . . . . . . . . Part Studies Acquired 1 | . . . . 1 . . . . . . . . . . . . Parts Repaired 4 | . . . . . . . . . . . . . . . 4 . Time 292 | . . . . . . . . . . . . . . . 292 . Parts Recycled . | . . . . . . . . . . . . . . . . . Recycled Matter . | . . . . . . . . . . . . . . . . . Retrieved Matter . | . . . . . . . . . . . . . . . . . Retrieved Components 13 | . . . . . . 13 . . . . . . . . . . Parts Scanalyzed . | . . . . . . . . . . . . . . . . . Part Schematics Acquired . | . . . . . . . . . . . . . . . . . Parts Damaged . | . . . . . . . . . . . . . . . . . Bothacking | -11 -10 -10 -8 -7 -7 -7 -5 -4 -4 -3 -3 -3 -3 -2 -2 -2 ------------ Run | Yrd Mat Sub Mat Fac Sto Rec Fac Fac DSF Res Gar Res Tes Res Qua Frg Used RIF Installer . | . . . . . . . . . . . . . . . . . Robots Hacked . | . . . . . . . . . . . . . . . . . Non-combat . | . . . . . . . . . . . . . . . . . Combat . | . . . . . . . . . . . . . . . . . Robot Hacks Applied . | . . . . . . . . . . . . . . . . . Relay Couplers Released 8 | . . . . 3 4 . . . . . . . . . . 1 Machine Destruction 1 | . . . . . . . . . . . . . . . . 1 Programmers 7 | . . . . 3 4 . . . . . . . . . . . Fabnet Peak Effective % . | . . . . . . . . . . . . . . . . . Robots Rewired . | . . . . . . . . . . . . . . . . . Allies Hacked . | . . . . . . . . . . . . . . . . . Hacks Repelled . | . . . . . . . . . . . . . . . . . Allies | -11 -10 -10 -8 -7 -7 -7 -5 -4 -4 -3 -3 -3 -3 -2 -2 -2 -------- Run | Yrd Mat Sub Mat Fac Sto Rec Fac Fac DSF Res Gar Res Tes Res Qua Frg Total Allies . | . . . . . . . . . . . . . . . . . Largest Group . | . . . . . . . . . . . . . . . . . Highest-Rated Group . | . . . . . . . . . . . . . . . . . Highest-Rated Ally . | . . . . . . . . . . . . . . . . . Total Orders . | . . . . . . . . . . . . . . . . . Ally Attacks . | . . . . . . . . . . . . . . . . . Total Damage . | . . . . . . . . . . . . . . . . . Kills . | . . . . . . . . . . . . . . . . . Allies Corrupted . | . . . . . . . . . . . . . . . . . Allies Melted . | . . . . . . . . . . . . . . . . . Intel | -11 -10 -10 -8 -7 -7 -7 -5 -4 -4 -3 -3 -3 -3 -2 -2 -2 ------- Run | Yrd Mat Sub Mat Fac Sto Rec Fac Fac DSF Res Gar Res Tes Res Qua Frg Active Infowar (turns) 8296 | 70 1506 181 353 680 . . 667 . . 292 41 740 278 301 2787 400 Sensors 5138 | . . . . . . . 667 . . . . 713 270 301 2787 400 Terrain 224 | . . . . . . . . . . 224 . . . . . . Structural 1387 | . . . . . . . . . . 136 41 274 278 301 357 . Seismic 3419 | 70 1506 181 353 680 . . 2 . . 19 39 . . . 569 . Jamming 829 | . . . . . . . . . . . . . . 1 587 241 ECM 1 | . . . . . . . 1 . . . . . . . . . Robot Analysis Total 1 | . 1 . . . . . . . . . . . . . . . Derelict Logs Recovered 1 | . . 1 . . . . . . . . . . . . . . Drone Launches . | . . . . . . . . . . . . . . . . . Drone Recoveries . | . . . . . . . . . . . . . . . . . Exploration | -11 -10 -10 -8 -7 -7 -7 -5 -4 -4 -3 -3 -3 -3 -2 -2 -2 ------------- Run | Yrd Mat Sub Mat Fac Sto Rec Fac Fac DSF Res Gar Res Tes Res Qua Frg Turns Passed 18740 | 153 1506 181 2462 3699 686 3034 1363 2 60 490 78 797 278 301 2832 818 Spaces Moved 14647 | 68 772 164 1329 1997 263 1584 940 3 65 502 229 935 438 534 3810 1014 Core 707 | 6 . . . . . . 498 3 47 24 . . . . . 129 Treads 2186 | 62 224 . 1181 719 . . . . . . . . . . . . Legs 2599 | . 393 . . 978 263 824 141 . . . . . . . . . Wheels 2092 | . 155 164 148 300 . 760 282 . . 283 . . . . . . Hover 6290 | . . . . . . . . . . . . 657 438 534 3810 851 Flight 773 | . . . . . . . 19 . 18 195 229 278 . . . 34 Fastest Speed 22 | 50 110 110 110 124 127 95 40 50 30 25 24 26 38 39 43 22 Average Speed 90 | 150 168 110 153 140 128 143 93 50 44 62 29 47 42 43 43 44 Slowest Speed 270 | 160 240 110 225 270 130 215 178 50 50 200 40 150 98 47 43 200 Overloaded Moves 27 | . . . . . . . . . . 1 . . . . . 26 Propulsion Burnouts . | . . . . . . . . . . . . . . . . . Robots Hopped 10 | . . . . . . . . . . 2 7 . . . . 1 Potential Cave-ins 1 | . . . . . . . . . . . . . . . 1 . Cave-ins Triggered . | . . . . . . . . . . . . . . . . . Teleports 1 | . . . . . . . . . . . . . . . . 1 Exploration Rate (%) 46 | 4 95 15 86 57 58 97 24 . 47 11 43 8 52 24 97 23 Regions Visited 16 Branch Regions 6 Pre-discovered Areas 3 | . . . 3 . . . . . . . . . . . . . Known Exits Taken 10 | . . . 1 1 1 . 1 1 . 1 . 1 1 1 1 . Unknown Exits Taken 4 | 1 1 1 . . . 1 . . . . . . . . . . Scrap Searched . | . . . . . . . . . . . . . . . . . Spaces Dug 40 | . . . . 1 2 6 4 . . 3 . . . 3 17 4 Terrain Destroyed 370 | . . . 25 80 21 29 115 . . 14 . 4 1 51 25 5 Melee 12 | . . . . . . . 4 . . . . . . . 6 2 Projectile 108 | . . . . 17 9 29 5 . . 14 . 3 1 8 19 3 AOE 249 | . . . 25 63 12 . 106 . . . . . . 43 . . Terrain Rammed . | . . . . . . . . . . . . . . . . . Walls Destroyed . | . . . . . . . . . . . . . . . . . Machines Disabled . | . . . . . . . . . . . . . . . . . Actions | -11 -10 -10 -8 -7 -7 -7 -5 -4 -4 -3 -3 -3 -3 -2 -2 -2 --------- Run | Yrd Mat Sub Mat Fac Sto Rec Fac Fac DSF Res Gar Res Tes Res Qua Frg Total 18709 | 90 875 165 1584 2594 464 2260 1201 2 82 631 228 1203 504 572 4927 1327 Wait 2407 | . 25 . 67 256 87 600 81 . 3 46 . 137 9 . 936 160 Move 14614 | 67 771 163 1328 1996 262 1583 939 2 64 498 215 934 437 533 3810 1012 Hop 8 | . . . . . . . . . . 2 5 . . . . 1 Pick Up 177 | 2 14 1 28 35 14 2 9 . 1 3 . 15 6 7 28 12 Fast Attach 171 | 7 1 . 10 33 5 4 14 . 2 28 2 21 11 3 16 14 Attach 96 | . 1 . 8 19 7 2 14 . 2 3 2 5 . 2 10 21 Detach 58 | . . . 1 10 1 5 6 . 1 4 . 7 . . 11 12 Swap 136 | . 6 . 23 45 6 3 1 . . 1 . 9 7 8 23 4 Drop 226 | . 3 1 36 54 9 19 10 . . 8 . 17 18 3 39 9 Fire 733 | 14 50 . 82 143 70 41 106 . . 34 . 45 16 14 45 73 Melee 39 | . . . . . . . 20 . 8 . . . . . 9 2 Ram 7 | . . . . . . . . . . 4 . . . 2 . 1 Kick 7 | . . . . 3 3 . 1 . . . . . . . . . Crush 5 | . 4 . 1 . . . . . . . . . . . . . Escape Stasis 23 | . . . . . . . . . . . 4 13 . . . 6 Rewire 1 | . . . . . . . . . 1 . . . . . . . Trap . | . . . . . . . . . . . . . . . . . Miscellaneous 1 | . . . . . . 1 . . . . . . . . . . Route ------- -11/Scrapyard -10/Materials (discovered 6 exits: [*Mat x3] / [*Min x2] / [*Sub]) -10/Subcaves -8/Materials (discovered 3 exits: *Fac x3) -7/Factory (discovered 6 exits: [*Fac x2] / *Sto x2 / *Low x2) -7/Storage -7/Recycling -5/Factory (discovered 2 exits: *Fac / *Upp) -4/Factory -4/DSF -3/Research (discovered 2 exits: *Res / Gar) -3/Garrison (discovered 2 exits: [*Res x2]) -3/Research (discovered 2 exits: *Res / *Tes) -3/Testing -2/Research (discovered 2 exits: *Qua x2) -2/Quarantine (discovered 3 exits: *Acc / [*Sec] / *Frg) -2/Protoforge History --------- Turn | Location | Event 9 | -11/Scrapyard | Discovered new exit (range 15) 154 | -11/Scrapyard | Entered Materials 155 | -10/Materials | Met a group of wandering Federalists 248 | -10/Materials | Lost 4 allies 305 | -10/Materials | Build established: Mutant 420 | -10/Materials | Discovered new exit (range 16) 750 | -10/Materials | Discovered new exit (range 14) 819 | -10/Materials | Discovered new exit (range 11) 846 | -10/Materials | Discovered new exit (range 16) 851 | -10/Materials | Discovered new exit (range 11) 955 | -10/Materials | Build established: Scavenger-Mutant 1121 | -10/Materials | Discovered new exit (range 10) 1660 | -10/Materials | Entered Subcaves 1685 | -10/Subcaves | Learned location of 1 exit from Materials 1820 | -10/Subcaves | Discovered new exit (range 12) 1828 | -10/Subcaves | Shifting Twisted Machinery released Mak. Kinetic Plating 1833 | -10/Subcaves | Shifting Twisted Machinery released Mak. System Restoration Module 1841 | -10/Subcaves | Entered Materials 1841 | -8/Materials | Evolved 4 slots: Propulsion x2, Utility x1, Weapon x1 1842 | -8/Materials | Identified exit to Factory 2242 | -8/Materials | Discovered exit to Factory (range 13) 2454 | -8/Materials | Build established: Tank 2603 | -8/Materials | Garrison activated, responded to threat 3455 | -8/Materials | Build established: Scavenger-Tank 3514 | -8/Materials | Discovered exit to Factory (range 8) 3818 | -8/Materials | Learned location of Extension (-6) 3871 | -8/Materials | Learned location of Lower Caves (-6) 3951 | -8/Materials | Learned location of Zion (-6) 3994 | -8/Materials | Learned 2 Lower Caves zone layouts 4023 | -8/Materials | Learned 2 Lower Caves zone layouts 4060 | -8/Materials | Learned Factory emergency access door positions 4105 | -8/Materials | Learned location of 1 exit from Lower Caves 4241 | -8/Materials | First assault squad dispatched 4303 | -8/Materials | Entered Factory 4303 | -7/Factory | Evolved 2 slots: Propulsion x1, Utility x1 5124 | -7/Factory | Central database locked down 5470 | -7/Factory | Build established: Scavenger-Gunner 5869 | -7/Factory | Lost 3 parts (2n1u) 6129 | -7/Factory | Build established: Scavenger-Tank 6303 | -7/Factory | First assault squad dispatched 6474 | -7/Factory | Lost 4 parts (1n1u2w) 6824 | -7/Factory | Discovered new exit (range 9) 7141 | -7/Factory | Discovered new exit (range 12) 7507 | -7/Factory | Discovered new exit (range 13) 7534 | -7/Factory | Build established: Tank 7818 | -7/Factory | Discovered new exit (range 7) 7835 | -7/Factory | Identified exit to Storage 7835 | -7/Factory | Identified exit to Lower Caves 8002 | -7/Factory | Entered Storage 8044 | -7/Storage | Identified exit to Recycling 8254 | -7/Storage | Garrison activated, responded to threat 8365 | -7/Storage | Garrison activated, responded to threat 8514 | -7/Storage | Core integrity fell below 50% 8593 | -7/Storage | Lost 6 parts (2n2u2w) 8635 | -7/Storage | System corruption reached 10% 8683 | -7/Storage | Used back door to open Recycling access 8688 | -7/Storage | Entered Recycling 8851 | -7/Recycling | Discovered new exit (range 9) 9450 | -7/Recycling | Build established: Scavenger-Tank 9667 | -7/Recycling | Entered Scraplab 9673 | -7/Recycling | Found Prototype Device 9673 | -7/Recycling | Identified Scrap Engine 9972 | -7/Recycling | Build established: Gunner 10841 | -7/Recycling | Build established: Construct 11722 | -7/Recycling | Entered Factory 11722 | -5/Factory | Evolved 4 slots: Power x1, Propulsion x1, Utility x2 12071 | -5/Factory | Lost 4 parts (1p1n1u1w) 12351 | -5/Factory | Discovered new exit (range 14) 12367 | -5/Factory | Identified exit to Upper Caves 12476 | -5/Factory | Lost 3 parts (3n) 12704 | -5/Factory | Core integrity fell below 50% 12758 | -5/Factory | Destroyed 7 combat bots 12771 | -5/Factory | Lost 14 parts (1p6n2u5w) 12968 | -5/Factory | Build established: Mutant 12971 | -5/Factory | Core integrity fell below 20% 13079 | -5/Factory | Discovered new exit (range 14) 13084 | -5/Factory | Identified exit to Factory 13085 | -5/Factory | Entered another Factory area 13085 | -4/Factory | Evolved 2 slots: Utility x2 13087 | -4/Factory | Identified exit to DSF 13087 | -4/Factory | Entered DSF 13113 | -4/DSF | Additional patrols routed to DSF 13130 | -4/DSF | Core integrity fell below 50% 13139 | -4/DSF | Discovered new exit (range 15) 13147 | -4/DSF | Entered Research 13147 | -3/Research | Evolved 2 slots: Propulsion x1, Weapon x1 13160 | -3/Research | Lost 3 parts (2u1w) 13484 | -3/Research | Discovered new exit (range 8) 13600 | -3/Research | Lost 5 parts (1p2n2u) 13637 | -3/Research | Identified exit to Garrison 13637 | -3/Research | Entered Garrison 13653 | -3/Garrison | Spotted B-86 Titan 13655 | -3/Garrison | Triggered checkpoint 13664 | -3/Garrison | Discovered new exit (range 12) 13667 | -3/Garrison | Attempted to access garrison exit controls, blocked by remote lockdown 13701 | -3/Garrison | Discovered new exit (range 10) 13715 | -3/Garrison | Entered Research 13719 | -3/Research | Discovered new exit (range 9) 13741 | -3/Research | Lost 12 parts (2p4n5u1w) 13741 | -3/Research | Identified exit to Research 14142 | -3/Research | Build established: Scavenger-Skirmisher 14269 | -3/Research | Lost 3 parts (1p1n1u) 14505 | -3/Research | Discovered new exit (range 15) 14511 | -3/Research | Identified exit to Testing 14512 | -3/Research | Entered Testing 14547 | -3/Testing | Found Prototype Launcher 14547 | -3/Testing | Identified Adv. Micro-nuke Launcher 14552 | -3/Testing | Found Adv. Micro-nuke Launcher 14599 | -3/Testing | Found Prototype Energy Gun 14599 | -3/Testing | Identified Hyp. EM Gauss Rifle 14614 | -3/Testing | Found Prototype Device 14614 | -3/Testing | Identified Exp. Thermal Defense Suite 14638 | -3/Testing | Build established: Scavenger-Scout 14697 | -3/Testing | Protovariant out of control (PY-RIOWF3B28X) 14697 | -3/Testing | Unleashed a protovariant (PY-RIOWF3B28X) 14726 | -3/Testing | Found Prototype Hackware 14726 | -3/Testing | Identified System Mapper 14774 | -3/Testing | Discovered exit to Research (range 14) 14787 | -3/Testing | Spotted PP-Y987TMXJQF 14790 | -3/Testing | Entered Research 14790 | -2/Research | Evolved 2 slots: Utility x2 14983 | -2/Research | Identified exit to Quarantine 15079 | -2/Research | Spotted B-90 Cyclops 15091 | -2/Research | Entered Quarantine 15109 | -2/Quarantine | Found Alien Artifact 15240 | -2/Quarantine | Cryocooling Duct disabled 15240 | -2/Quarantine | Cryocooling Duct disabled 15255 | -2/Quarantine | Ambient heat levels rising (+40) 15255 | -2/Quarantine | Non-combat units ordered to evacuate 15255 | -2/Quarantine | Combat units ordered to evacuate 15355 | -2/Quarantine | Quarantine Guard activated 15381 | -2/Quarantine | Spotted Quarantine Guard 15396 | -2/Quarantine | Build established: Hacker-Scout 15458 | -2/Quarantine | Found Prototype Launcher 15458 | -2/Quarantine | Identified Smartbomb Launcher 15489 | -2/Quarantine | Spotted Quarantine Guard 15513 | -2/Quarantine | Spotted Quarantine Guard 15564 | -2/Quarantine | Spotted Quarantine Guard 15584 | -2/Quarantine | Spotted Quarantine Guard 15621 | -2/Quarantine | Spotted Quarantine Guard 15629 | -2/Quarantine | Found Gamma Bomb Array 15631 | -2/Quarantine | Found Gamma Bomb Array 15637 | -2/Quarantine | Destroyed Quarantine Guard 15777 | -2/Quarantine | Discovered new exit (range 16) 15777 | -2/Quarantine | Spotted Quarantine Guard 15782 | -2/Quarantine | Destroyed Quarantine Guard 15789 | -2/Quarantine | Identified exit to Access 15841 | -2/Quarantine | Found Alien Slashing Weapon 15841 | -2/Quarantine | Identified Sigix Broadsword 15880 | -2/Quarantine | Spotted Quarantine Guard 15891 | -2/Quarantine | Destroyed Quarantine Guard 16025 | -2/Quarantine | Build established: Hacker-Mutant 16035 | -2/Quarantine | Destroyed Quarantine Guard 16072 | -2/Quarantine | Destroyed Quarantine Guard 16075 | -2/Quarantine | System corruption reached 10% 16144 | -2/Quarantine | Destroyed Quarantine Guard 16262 | -2/Quarantine | Repaired Corrupted Adv. Cooling System 16368 | -2/Quarantine | Repaired Corrupted Adv. Cooling System 16394 | -2/Quarantine | Found Prototype Device 16394 | -2/Quarantine | Identified Thermal Barrier 16398 | -2/Quarantine | Found Thermal Barrier 16649 | -2/Quarantine | Found Alien Artifact 16654 | -2/Quarantine | Found Alien Artifact 16655 | -2/Quarantine | Found Alien Artifact 16663 | -2/Quarantine | Found Alien Artifact 16878 | -2/Quarantine | Spotted Quarantine Guard 16896 | -2/Quarantine | Destroyed Quarantine Guard 16965 | -2/Quarantine | Spotted Quarantine Guard 17060 | -2/Quarantine | Destroyed Quarantine Guard 17301 | -2/Quarantine | Found Quantum Capacitor 17461 | -2/Quarantine | Repaired Gamma Bomb Array 17626 | -2/Quarantine | Repaired Mic. Antimatter Reactor 17805 | -2/Quarantine | Build established: Scavenger-Mutant 17821 | -2/Quarantine | Found Alien Artifact 17889 | -2/Quarantine | Spotted Fortress 17920 | -2/Quarantine | Discovered new exit (range 6) 17920 | -2/Quarantine | Discovered new exit (range 5) 17920 | -2/Quarantine | Spotted Quarantine Guard 17920 | -2/Quarantine | Spotted Quarantine Guard 17922 | -2/Quarantine | Identified exit to Protoforge 17923 | -2/Quarantine | Entered Protoforge 17928 | -2/Protoforge | Spotted Hotshot 18008 | -2/Protoforge | Superfortress began startup sequence 18173 | -2/Protoforge | Found Prototype Device 18173 | -2/Protoforge | Identified Exp. Trap Extractor 18224 | -2/Protoforge | Build established: Hacker-Mutant 18469 | -2/Protoforge | Lost 11 parts (3p2n4u2w) 18487 | -2/Protoforge | Spotted Decapitator 18491 | -2/Protoforge | Spotted Decapitator 18491 | -2/Protoforge | Spotted Decapitator 18492 | -2/Protoforge | Spotted Decapitator 18496 | -2/Protoforge | Destroyed Decapitator 18496 | -2/Protoforge | Destroyed Decapitator 18505 | -2/Protoforge | Destroyed Decapitator 18525 | -2/Protoforge | Destroyed Decapitator 18550 | -2/Protoforge | Identified Transdimensional Reconstructor 18551 | -2/Protoforge | Found Prototype Device 18555 | -2/Protoforge | Spotted Immortal 18556 | -2/Protoforge | Spotted Immortal 18557 | -2/Protoforge | Spotted Decapitator 18557 | -2/Protoforge | Spotted Decapitator 18557 | -2/Protoforge | Spotted Decapitator 18557 | -2/Protoforge | Spotted Decapitator 18572 | -2/Protoforge | Lost 7 parts (1p6n) 18638 | -2/Protoforge | Core integrity fell below 50% 18639 | -2/Protoforge | System corruption reached 30% 18647 | -2/Protoforge | Warped through subspace 18647 | -2/Protoforge | Spotted Decapitator 18647 | -2/Protoforge | Spotted Decapitator 18647 | -2/Protoforge | Spotted Decapitator 18661 | -2/Protoforge | Found Cep. Antigrav Storage Unit 18665 | -2/Protoforge | Lost 3 parts (1n1u1w) 18672 | -2/Protoforge | Found Prototype Device 18672 | -2/Protoforge | Identified Cep. Matter Streamer 18681 | -2/Protoforge | Found Cep. Matter Streamer 18716 | -2/Protoforge | Destroyed Decapitator 18722 | -2/Protoforge | Found Cep. Concussive Dispersal Blaster 18729 | -2/Protoforge | Core integrity fell below 20% 18741 | -2/Protoforge | Destroyed by Decapitator with Experimental Terror Saw Last Messages --------------- 18725_ Slug penetrates Research Cell. 18727_ Slug penetrates Decapitator. 18728_ Penetrated by Slug. 18728_ K-01 Serf destroyed. 18730_ Exp. Surge Thruster severed. 18730_ Acquired Exp. Surge Thruster. 18731_ Penetrated by Slug. 18732_ Acquired 70 matter. 18732_ U-05 Engineer lays Concrete. 18734_ Exp. Surge Thruster severed. 18735_ System corrupted: Matter fused (-5). 18740_ HV Slug penetrates Reinforced Barrier. 18740_ Penetrated by HV Slug. 18740_ HV Slug penetrates Reinforced Barrier. 18740_ Penetrated by HV Slug. 18740_ HV Slug penetrates Reinforced Barrier. 18740_ Penetrated by HV Slug. 18740_ HV Slug penetrates Reinforced Barrier. 18741_ Cep. Concussive Dispersal Blaster severed. [Achievement: Collector] Map ----- +----------------------------------------------------+ | #????????????######## #######??????????????????? | | #???????????????????# #????????????????????????? | | #???????????????????# #????????????????????????? | | #???????????????????# #????????????????????????? | | #???????????????????# #????????????????????????? | | #???????????????????# #????????????????????????? | | #???????????????????# #????????????????????????? | | #???????????????????# #????????????????????????? | | #####################% #????????????????????????? | | ##???????????????????????? | | * #???????????????????????? | | ! % % #???????????????????????? | | #######+++######## #####???????????????????????? | | ???# #???# #???????????????????????????? | | ???#| #???# =#???????????????????????????? | | ???# ! % !#???# #???????????????????????????? | | ???# % " =#???# % #???????????????????????????? | | ???# % "G""%=#???# #???????????????????????????? | | ???# =!!%!!#???# #???????????????????????????? | | ???###########???# ################# ?????????? | | ?????????????????# ?????????? | | ?????????????????# ????????? | | ?????????????????# ????????? | | ?????????????????######## #??????????????? | | ????????????????????????#cc #??????????????? | | ????????????????????????#@ #??????????????? | | ????????????????????????# #??????????????? | | ????????????????????????# #??????????????? | | ????????????????????????## ##??????????????? | | ????????????????????????## #???????????????? | | ?????????????????########" ###?????????????? | | ?????????????????#""""""" """"????????????? | | ????????????????## """" """???????????? | | #####???######??#" ="" ""???????????? | | """"#???#""""#??## T" ""???????????? | | !!!""### = =##### ! ?????????? | | |$$$ ?????????? | | * FFF ?????????? | | FFF ?????????? | | FF ??????????? | | ??????????? | | ???????????? | | !!!!##### !!!##### ???????????? | | """"#???#""""#???#"""""""""""""""""""????????????? | | #####???######???#""""""""""""""""???????????????? | | ?????????????????#""""""""""?????????????????????? | | ??????????????????#??????????????????????????????? | | ?????????????????????????????????????????????????? | | ?????????????????????????????????????????????????? | | ?????????????????????????????????????????????????? | +----------------------------------------------------+ Best States ------------- Heat Dissipation 121 Coolant Potential 240 Energy Generation 45 Energy Capacity 880 Matter Stores 300 Matter Capacity 600 Sight Range 16 Robot Scan Range 16 Terrain Scan Range 14 Terrain Scan Density 10 Jamming Range 16 Power Amplification 60 Corruption Block 20 Armor Coverage 800 Resistance: KI 10 Resistance: TH 50 Weapon Cycling 20 Melee Speed Boost 20 Evasion (%) 65 Melee Accuracy 40 Launcher Accuracy 40 Recoil Reduction 5 Particle Charging 15 Offensive Hacking 30 Defensive Hacking 10 Item Schematics ----------------- Hvy. Gatling Laser | -2/Quarantine | Archive Hvy. Tesla Rifle | -2/Quarantine | Archive Adv. KE Penetrator | -2/Quarantine | Archive Exp. Field Recycling Unit | -2/Quarantine | Archive Adv. Energy Well | -2/Quarantine | Archive Imp. Energy Well | -2/Quarantine | Archive Spectral Analyzer | -2/Quarantine | Archive Cld. Phase Gun | -2/Quarantine | Archive Enh. Multireflex Exoskeleton | -2/Quarantine | Archive Tactical Quantum Warhead | -2/Quarantine | Archive Adv. Variable Charge Gun | -2/Protoforge | Archive Exp. Terrain Scan Processor | -2/Protoforge | Archive Robot Schematics ------------------ B-74 Champion | -2/Quarantine | Archive A-02 Transporter | -2/Protoforge | Archive Fabricated ------------ Nothing Repaired ---------- Adv. Cooling System | 78% | -2/Quarantine | Corrupted Adv. Cooling System | 77% | -2/Quarantine | Corrupted Gamma Bomb Array | 10% | -2/Quarantine Mic. Antimatter Reactor | 30% | -2/Quarantine Studied --------- Lgt. Treads | -7/Factory | Hacked Alien Tech Used ----------------- Sigix Broadsword Transdimensional Reconstructor Achievements -------------- Collector Rampage Challenges ------------ None Game ------ Seed TiamatBlastConstruct Manual? 0 Play Time 04:03:31 Cumulative 302.6 hours Start 2026.07.22 @ 02:36:30 End 2026.07.29 @ 19:30:31 Sessions 15 Manual Loads 0 Difficulty Rogue Special Mode None Game No. 145 Rogue 145 Adventurer 0 Explorer 0 Win Type - Total 18 Types 14/1/1/1/0/0/0/0/0/1 Lore% 80 Gallery% 75 Achievement% 73 Wizard Run 0 Options --------- Layout 0 ASCII 0 Keyboard 1 Movement Arrows Keybinds 0 Fullscreen 2 Font 18/SmallcapsGlow Map View 76x50 Zoom Use 0% Tactical HUD 1 Map Filters NONE Filters NONE Steam 1 RUN: af6fa22b-837b-4f9e-9714-681b4d34db9c